fUST/lending_fUST_20240922
["ID","MTS","AMOUNT","RATE_DAILY","PERIOD"]
[338866550,1726956652856,-271.163604,0.0001769,2]
[338866551,1726956652866,-271.163604,0.0001769,2]
[338866552,1726956652875,-167.240858,0.0001769,2]
[338866553,1726956652886,-167.240858,0.0001769,2]
[338866554,1726956652895,-575.950208,0.0001769,2]
[338866555,1726956652905,-575.950208,0.0001769,2]
[338866556,1726956652914,-1616.5543,0.0001769,2]
[338866557,1726956652923,-632.606093,0.0001769,2]
[338866558,1726956652932,-1616.5543,0.0001769,2]
[338866559,1726956652942,-632.606093,0.0001769,2]
[338866560,1726956652951,-151.0,0.0001769,2]
[338866561,1726956652960,-517.426835,0.0001769,2]
[338866562,1726956652969,-517.426835,0.0001769,2]
[338866563,1726956652979,-268.62582,0.0001769,2]
[338866564,1726956652988,-268.62582,0.0001769,2]
[338866565,1726956652997,-674.26425,0.0001769,2]
[338866566,1726956653006,-151.0,0.0001769,2]
[338866567,1726956653016,-674.26425,0.0001769,2]
[338866568,1726956653026,-5654.261616,0.0001769,2]
[338866569,1726956653035,-151.0,0.0001769,2]
[338866570,1726956653044,-5654.261616,0.0001769,2]
[338866571,1726956653053,-151.0,0.0001769,2]
[338866572,1726956653062,-156.338537,0.0001769,2]
[338866573,1726956653073,-151.0,0.0001769,2]
[338866574,1726956653082,-1277.740459,0.0001769,2]
[338866575,1726956653092,-1277.740459,0.0001769,2]
[338866576,1726956653101,-151.0,0.0001769,2]
[338866577,1726956653110,-151.0,0.0001769,2]
[338866578,1726956653119,-151.0,0.0001769,2]
[338866579,1726956653128,-824.076443,0.0001769,2]
[338866580,1726956653138,-151.0,0.0001769,2]
[338866581,1726956653148,-824.076443,0.0001769,2]
[338866582,1726956653157,-151.0,0.0001769,2]
[338866583,1726956653166,-295.550393,0.0001769,2]
[338866584,1726956653175,-295.550393,0.0001769,2]
[338866585,1726956653184,-151.0,0.0001769,2]
[338866586,1726956653194,-758.112631,0.0001769,2]
[338866587,1726956653203,-758.112631,0.0001769,2]
[338866588,1726956653213,-407.085646,0.0001769,2]
[338866589,1726956653222,-286.621205,0.0001769,2]
[338866590,1726956653235,-407.085646,0.0001769,2]
[338866591,1726956653246,-286.621205,0.0001769,2]
[338866592,1726956653257,-1454.083673,0.0001769,2]
[338866593,1726956653267,-315.225152,0.0001769,2]
[338866594,1726956653278,-1454.083673,0.0001769,2]
[338866595,1726956653287,-315.225152,0.0001769,2]
[338866596,1726956653299,-1516.180759,0.0001769,2]
[338866597,1726956653307,-1516.180759,0.0001769,2]
[338866598,1726956653317,-151.0,0.0001769,2]
[338866599,1726956653328,-439.787767,0.0001769,2]
[338866600,1726956653337,-439.787767,0.0001769,2]
[338866601,1726956653347,-600.0,0.00017704,2]
[338866602,1726956653356,-624.8,0.00017733,2]
[338866603,1726956653365,-520.278771,0.00017741,2]
[338866604,1726956653374,-645.655968,0.00017741,2]
[338866605,1726956653383,-260.139385,0.00017741,2]
[338866606,1726956653392,-322.827984,0.00017741,2]
[338866607,1726956653401,-229.0,0.0001778,2]
[338866608,1726956653410,-500.0,0.00017835,2]
[338866609,1726956653420,-500.0,0.00017835,2]
[338866610,1726956653429,-2826.77,0.00017835,2]
[338866611,1726956653439,-500.0,0.00017836,2]
[338866613,1726956653447,-500.0,0.00017836,2]
[338866614,1726956653456,-500.0,0.00017836,2]
[338866615,1726956653466,-500.0,0.00017836,2]
[338866616,1726956653475,-7937.44,0.00017836,2]
[338866617,1726956653484,-715.96,0.00017836,2]
[338866618,1726956653493,-200.0,0.00017837,2]
[338866619,1726956653502,-500.0,0.00017837,2]
[338866620,1726956653511,-500.0,0.00017837,2]
[338866621,1726956653520,-500.0,0.00017838,2]
[338866622,1726956653529,-500.0,0.00017838,2]
[338866623,1726956653538,-151.0,0.00017876,2]
[338866624,1726956653547,-1873.720172,0.00017876,2]
[338866625,1726956653556,-1873.720172,0.00017876,2]
[338866626,1726956653566,-1203.833073,0.00017876,2]
[338866627,1726956653580,-1203.833073,0.00017876,2]
[338866628,1726956653590,-151.0,0.00017876,2]
[338866629,1726956653598,-370.874248,0.00017876,2]
[338866630,1726956653607,-370.874248,0.00017876,2]
[338866631,1726956653616,-199.499447,0.00017876,2]
[338866632,1726956653626,-199.499447,0.00017876,2]
[338866633,1726956653635,-588.997003,0.00017876,2]
[338866634,1726956653644,-588.99701012,0.00017876,2]
[338866635,1726956653654,-151.0,0.00017876,2]
[338866636,1726956653663,-151.0,0.00017876,2]
[338866637,1726956653672,-151.0,0.00017876,2]
[338866638,1726956653682,-151.0,0.00017876,2]
[338866639,1726956653691,-271.163604,0.00017876,2]
[338866640,1726956653700,-271.163609,0.00017876,2]
[338866641,1726956653710,-167.240858,0.00017876,2]
[338866642,1726956653719,-167.240858,0.00017876,2]
[338866643,1726956653728,-575.950208,0.00017876,2]
[338866644,1726956653737,-575.950202,0.00017876,2]
[338866645,1726956653746,-1616.5543,0.00017876,2]
[338866646,1726956653756,-632.606093,0.00017876,2]
[338866647,1726956653766,-1616.554296,0.00017876,2]
[338866648,1726956653776,-632.606097,0.00017876,2]
[338866649,1726956653787,-151.0,0.00017876,2]
[338866650,1726956653797,-517.426835,0.00017876,2]
[338866651,1726956653807,-517.426835,0.00017876,2]
[338866652,1726956653817,-268.62582,0.00017876,2]
[338866653,1726956653827,-268.62582,0.00017876,2]
[338866654,1726956653836,-674.26425,0.00017876,2]
[338866655,1726956653846,-151.0,0.00017876,2]
[338866656,1726956653856,-674.26425,0.00017876,2]
[338866657,1726956653866,-5654.261616,0.00017876,2]
[338866658,1726956653878,-151.0,0.00017876,2]
[338866659,1726956653887,-5654.261616,0.00017876,2]
[338866660,1726956653899,-151.0,0.00017876,2]
[338866661,1726956653909,-151.0,0.00017876,2]
[338866662,1726956653920,-1277.740459,0.00017876,2]
[338866663,1726956653932,-1277.740459,0.00017876,2]
[338866664,1726956653942,-151.0,0.00017876,2]
[338866665,1726956653952,-151.0,0.00017876,2]
[338866666,1726956653962,-151.0,0.00017876,2]
[338866667,1726956653973,-824.076443,0.00017876,2]
[338866668,1726956653984,-151.0,0.00017876,2]
[338866669,1726956653994,-824.076443,0.00017876,2]
[338866670,1726956654005,-239.421688,0.00017876,2]
[338866671,1726956654015,-295.550393,0.00017876,2]
[338866672,1726956654024,-295.550393,0.00017876,2]
[338866673,1726956654034,-151.0,0.00017876,2]
[338866674,1726956654044,-758.112631,0.00017876,2]
[338866675,1726956654054,-758.112631,0.00017876,2]
[338866676,1726956654065,-407.085646,0.00017876,2]
[338866677,1726956654078,-286.621205,0.00017876,2]
[338866678,1726956654088,-407.085646,0.00017876,2]
[338866679,1726956654100,-286.621205,0.00017876,2]
[338866680,1726956654111,-1454.083673,0.00017876,2]
[338866681,1726956654124,-315.225152,0.00017876,2]
[338866682,1726956654133,-1454.083673,0.00017876,2]
[338866683,1726956654143,-315.225152,0.00017876,2]
[338866684,1726956654152,-1516.180759,0.00017876,2]
[338866685,1726956654161,-1516.180759,0.00017876,2]
[338866686,1726956654171,-151.0,0.00017876,2]
[338866687,1726956654181,-439.787767,0.00017876,2]
[338866688,1726956654190,-439.787767,0.00017876,2]
[338866689,1726956654199,-29021.60988944,0.00017876,7]
[338866690,1726956654209,-600.0,0.00017884,2]
[338866691,1726956654218,-208.8866586,0.00017908,2]
[338866692,1726956654228,-208.5094746,0.00017908,2]
[338866693,1726956654239,-151.0,0.00017954,2]
[338866694,1726956654248,-322.827984,0.00017954,2]
[338866695,1726956654258,-195.104539,0.00017954,2]
[338866696,1726956654267,-322.827984,0.00017954,2]
[338866697,1726956654276,-260.139385,0.00017954,2]
[338866698,1726956654286,-520.278771,0.00017954,2]
[338866699,1726956654295,-645.655968,0.00017954,2]
[338866700,1726956654305,-260.139385,0.00017954,2]
[338866701,1726956654315,-322.827984,0.00017954,2]
[338866702,1726956654327,-162.587116,0.00017954,2]
[338866703,1726956654337,-161.413993,0.00017954,2]
[338866704,1726956654347,-161.413992,0.00017954,2]
[338866705,1726956654356,-161.413992,0.00017954,2]
[338866706,1726956654365,-161.413992,0.00017954,2]
[338866707,1726956654374,-178.845827,0.00017954,2]
[338866708,1726956654383,-169.231417,0.00017954,2]
[338866709,1726956654392,-208.8866586,0.0001797,2]
[338866710,1726956654403,-208.8866586,0.0001797,2]
[338866711,1726956654412,-417.3961332,0.0001797,2]
[338866712,1726956654422,-208.8866586,0.0001797,2]
[338866713,1726956654431,-208.8866586,0.0001797,2]
[338866714,1726956654440,-208.8866586,0.0001797,2]
[338866715,1726956654450,-208.8866586,0.0001797,2]
[338866716,1726956654460,-208.8866586,0.0001797,2]
[338866717,1726956654470,-208.8866586,0.0001797,2]
[338866718,1726956654479,-208.8866586,0.0001797,2]
[338866719,1726956654488,-208.8866586,0.0001797,2]
[338866720,1726956654497,-208.8866586,0.0001797,2]
[338866721,1726956654508,-208.8866586,0.0001797,2]
[338866722,1726956654518,-208.8866586,0.0001797,2]
[338866723,1726956654528,-208.8866586,0.0001797,2]
[338866724,1726956654538,-208.8866586,0.0001797,2]
[338866725,1726956654549,-208.8866586,0.0001797,2]
[338866726,1726956654558,-208.8866586,0.0001797,2]
[338866727,1726956654567,-208.8866586,0.0001797,2]
[338866728,1726956654581,-208.8866586,0.0001797,2]
[338866729,1726956654590,-208.8866586,0.0001797,2]
[338866730,1726956654599,-373.0112238,0.0001797,2]
[338866731,1726956654609,-184.0,0.00018,2]
[338866732,1726956654619,-8365.37098708,0.00018,2]
[338866733,1726956654629,-8424.38236021,0.00018,10]
[338866734,1726956654638,-7854.36939142,0.00018,10]
[338866735,1726956654648,-5301.42270247,0.00018,2]
[338866736,1726956654657,-267.292574,0.00018,2]
[338866737,1726956654667,-267.292574,0.00018,2]
[338866738,1726956654677,-189.76273,0.00018,2]
[338866739,1726956654687,-500.0,0.00018,2]
[338866740,1726956654697,-258.837215,0.00018,2]
[338866741,1726956654707,-258.837215,0.00018,2]
[338866742,1726956654718,-500.0,0.00018,2]
[338866743,1726956654729,-151.0,0.00018,2]
[338866744,1726956654739,-151.0,0.00018,2]
[338866745,1726956654748,-151.0,0.00018,2]
[338866746,1726956654758,-151.0,0.00018,2]
[338866747,1726956654769,-1050.96825691,0.00018,2]
[338866748,1726956654778,-207.02102969,0.00018,2]
[338866749,1726956654790,-1000.0,0.00018,2]
[338866750,1726956654802,-1516.180759,0.00018042,2]
[338866751,1726956654812,-1516.18076,0.00018042,2]
[338866752,1726956654821,-570.59395856,0.00018042,2]
[338866753,1726956654833,-1000.0,0.00018042,2]
[338866754,1726956654843,-376.33839844,0.00018042,2]
[338866755,1726956654852,-1000.0,0.00018042,2]
[338866756,1726956654862,-1000.0,0.00018042,2]
[338866757,1726956654871,-500.0,0.00018042,2]
[338866758,1726956654881,-624.8,0.00018057,2]
[338866759,1726956654890,-600.0,0.00018065,2]
[338866760,1726956654900,-160.0,0.00018084,3]
[338866761,1726956654912,-644.1711973,0.00018084,2]
[338866762,1726956654922,-2075.8074504,0.000181,2]
[338866763,1726956654933,-524.08,0.00018109,2]
[338866764,1726956654943,-151.0,0.00018109,2]
[338866765,1726956654953,-500.0,0.00018109,2]
[338866766,1726956654962,-758.112631,0.00018109,2]
[338866767,1726956654972,-758.112631,0.00018109,2]
[338866768,1726956654982,-2826.77,0.00018109,2]
[338866769,1726956654992,-286.621205,0.00018109,2]
[338866770,1726956655001,-286.621205,0.00018109,2]
[338866771,1726956655011,-315.225152,0.00018109,2]
[338866772,1726956655022,-315.225152,0.00018109,2]
[338866773,1726956655032,-439.787767,0.00018109,2]
[338866774,1726956655043,-439.787767,0.00018109,2]
[338866775,1726956655053,-566.10318848,0.0001811,2]
[338866776,1726956655063,-500.0,0.0001811,2]
[338866777,1726956655072,-151.0,0.0001811,2]
[338866778,1726956655083,-517.426835,0.0001811,2]
[338866779,1726956655094,-517.426835,0.0001811,2]
[338866780,1726956655105,-268.62582,0.0001811,2]
[338866781,1726956655116,-268.625818,0.0001811,2]
[338866782,1726956655127,-500.0,0.0001811,2]
[338866783,1726956655138,-674.26425,0.0001811,2]
[338866784,1726956655149,-151.0,0.0001811,2]
[338866785,1726956655159,-674.26425,0.0001811,2]
[338866786,1726956655168,-5654.261616,0.0001811,2]
[338866787,1726956655178,-151.0,0.0001811,2]
[338866788,1726956655188,-5654.261621,0.0001811,2]
[338866789,1726956655198,-151.0,0.0001811,2]
[338866790,1726956655208,-151.0,0.0001811,2]
[338866791,1726956655218,-1277.740459,0.0001811,2]
[338866792,1726956655229,-1277.740459,0.0001811,2]
[338866793,1726956655240,-260.27532,0.0001811,2]
[338866794,1726956655250,-151.0,0.0001811,2]
[338866795,1726956655259,-151.0,0.0001811,2]
[338866796,1726956655269,-824.076443,0.0001811,2]
[338866797,1726956655279,-151.0,0.0001811,2]
[338866798,1726956655289,-824.07644935,0.0001811,2]
[338866799,1726956655300,-445.04845527,0.0001811,2]
[338866800,1726956655312,-295.550393,0.0001811,2]
[338866801,1726956655322,-295.550398,0.0001811,2]
[338866802,1726956655333,-407.085646,0.0001811,2]
[338866803,1726956655346,-7937.44,0.0001811,2]
[338866804,1726956655356,-407.085652,0.0001811,2]
[338866805,1726956655366,-1454.083673,0.0001811,2]
[338866806,1726956655376,-715.96,0.0001811,2]
[338866807,1726956655385,-1454.083664,0.0001811,2]
[338866808,1726956655395,-151.0,0.0001811,2]
[338866809,1726956655405,-200.0,0.00018111,2]
[338866810,1726956655415,-500.0,0.00018111,2]
[338866811,1726956655425,-500.0,0.00018111,2]
[338866812,1726956655436,-500.0,0.00018112,2]
[338866813,1726956655446,-500.0,0.00018112,2]
[338866814,1726956655456,-620.00103146,0.00018221,2]
[338866815,1726956655465,-600.0,0.00018246,2]
[338866816,1726956655475,-1451.0,0.00018378,13]
[338866817,1726956655484,-624.8,0.00018381,2]
[338866818,1726956655493,-500.0,0.00018383,2]
[338866819,1726956655503,-2826.77,0.00018383,2]
[338866820,1726956655514,-151.0,0.00018384,2]
[338866821,1726956655523,-199.499447,0.00018384,2]
[338866822,1726956655533,-199.499447,0.00018384,2]
[338866823,1726956655542,-151.0,0.00018384,2]
[338866824,1726956655551,-500.0,0.00018384,2]
[338866825,1726956655561,-167.240858,0.00018384,2]
[338866826,1726956655570,-167.240858,0.00018384,2]
[338866827,1726956655582,-500.0,0.00018384,2]
[338866828,1726956655726,-7937.44,0.00018384,2]
[338866829,1726956655737,-715.96,0.00018384,2]
[338866830,1726956655749,-1873.720172,0.00018385,2]
[338866831,1726956655759,-1873.720172,0.00018385,2]
[338866832,1726956655768,-1203.833073,0.00018385,2]
[338866833,1726956655778,-1203.833073,0.00018385,2]
[338866834,1726956655792,-370.874248,0.00018385,2]
[338866835,1726956655807,-370.874248,0.00018385,2]
[338866836,1726956655818,-200.0,0.00018385,2]
[338866837,1726956655834,-500.0,0.00018385,2]
[338866838,1726956655845,-317.59080665,0.00018385,2]
[338866839,1726956655855,-500.0,0.00018386,2]
[338866840,1726956655864,-500.0,0.00018386,2]
[338866841,1726956655874,-600.0,0.00018426,2]
[338866842,1726956655884,-151.0,0.00018439,2]
[338866843,1726956655894,-16032.40120307,0.00018447,2]
[338866844,1726956655903,-258.837215,0.00018447,2]
[338866845,1726956655912,-258.837215,0.00018447,2]
[338866846,1726956655922,-151.0,0.00018447,2]
[338866847,1726956655931,-151.0,0.00018447,2]
[338866848,1726956655940,-3369.38992769,0.000185,2]
[338866849,1726956655951,-3369.38992766,0.000185,2]
[338866850,1726956655960,-3369.38992766,0.000185,2]
[338866851,1726956655970,-3369.38992766,0.000185,2]
[338866852,1726956655980,-16161.96984596,0.000185,2]
[338866853,1726956655989,-16161.96984596,0.000185,2]
[338866854,1726956655999,-16161.96984596,0.000185,2]
[338866855,1726956656009,-16161.96984596,0.000185,2]
[338866856,1726956656019,-267.292574,0.000185,2]
[338866857,1726956656028,-267.292574,0.000185,2]
[338866858,1726956656038,-189.76273,0.000185,2]
[338866859,1726956656048,-151.0,0.000185,2]
[338866860,1726956656058,-242.141653,0.000185,2]
[338866861,1726956656068,-151.0,0.000185,2]
[338866862,1726956656079,-1873.720172,0.000185,2]
[338866863,1726956656089,-1873.720181,0.000185,2]
[338866864,1726956656100,-1203.833073,0.000185,2]
[338866865,1726956656112,-1203.833065,0.000185,2]
[338866866,1726956656123,-151.0,0.000185,2]
[338866867,1726956656134,-370.874248,0.000185,2]
[338866868,1726956656143,-370.874257,0.000185,2]
[338866869,1726956656153,-199.499447,0.000185,2]
[338866870,1726956656163,-199.499455,0.000185,2]
[338866871,1726956656173,-151.0,0.000185,2]
[338866872,1726956656183,-167.240858,0.000185,2]
[338866873,1726956656192,-167.240848,0.000185,2]
[338866874,1726956656202,-674.26425,0.000185,2]
[338866875,1726956656212,-151.0,0.000185,2]
[338866876,1726956656221,-674.264254,0.000185,2]
[338866877,1726956656233,-151.0,0.000185,2]
[338866878,1726956656245,-151.0,0.000185,2]
[338866879,1726956656256,-151.0,0.000185,2]
[338866880,1726956656266,-1277.740459,0.000185,2]
[338866881,1726956656278,-1277.740456,0.000185,2]
[338866882,1726956656288,-167.658974,0.000185,2]
[338866883,1726956656299,-758.112631,0.000185,2]
[338866884,1726956656308,-758.112639,0.000185,2]
[338866885,1726956656319,-286.621205,0.000185,2]
[338866886,1726956656330,-1000.0,0.000185,2]
[338866887,1726956656342,-286.621211,0.000185,2]
[338866888,1726956656352,-315.225152,0.000185,2]
[338866889,1726956656363,-315.225145,0.000185,2]
[338866890,1726956656372,-439.787767,0.000185,2]
[338866891,1726956656381,-439.787772,0.000185,2]
[338866892,1726956656393,-160.0,0.00018513,4]
[338866893,1726956656403,-2075.8074504,0.000186,2]
[338866894,1726956656415,-600.0,0.00018607,2]
[338866895,1726956656427,-500.0,0.00018657,2]
[338866896,1726956656437,-2826.77,0.00018657,2]
[338866897,1726956656447,-500.0,0.00018658,2]
[338866898,1726956656457,-500.0,0.00018658,2]
[338866899,1726956656468,-7937.44,0.00018658,2]
[338866900,1726956656478,-715.96,0.00018658,2]
[338866901,1726956656488,-258.837215,0.00018659,2]
[338866902,1726956656499,-258.837213,0.00018659,2]
[338866903,1726956656510,-151.0,0.00018659,2]
[338866904,1726956656523,-151.0,0.00018659,2]
[338866905,1726956656534,-200.0,0.00018659,2]
[338866906,1726956656544,-500.0,0.00018659,2]
[338866907,1726956656553,-500.0,0.0001866,2]
[338866908,1726956656563,-500.0,0.0001866,2]
[338866909,1726956656572,-624.8,0.00018705,2]
[338866910,1726956656583,-500.31559626,0.00018714,2]
[338866911,1726956656592,-611.04577296,0.00018714,2]
[338866912,1726956656601,-188.20230846,0.0001873,2]
[338866913,1726956656610,-1000.0,0.0001873,2]
[338866914,1726956656620,-1000.0,0.0001873,2]
[338866915,1726956656629,-513.72926842,0.00018734,2]
[338866916,1726956656639,-1000.0,0.00018776,2]
[338866917,1726956656650,-1340.57534325,0.00018787,14]
[338866918,1726956656659,-600.0,0.00018788,2]
[338866919,1726956656669,-417.7733172,0.00018792,2]
[338866920,1726956656678,-208.8866586,0.00018792,2]
[338866921,1726956656691,-208.8866586,0.00018792,2]
[338866922,1726956656702,-153.0,0.00018792,2]
[338866923,1726956656713,-267.292574,0.00018792,2]
[338866924,1726956656723,-267.292574,0.00018792,2]
[338866925,1726956656735,-189.76273,0.00018792,2]
[338866926,1726956656745,-229.0,0.0001883,2]
[338866927,1726956656756,-3000.0,0.000189,5]
[338866928,1726956656766,-1030.56841598,0.00018904,2]
[338866929,1726956656775,-823.0,0.0001891,2]
[338866930,1726956656786,-500.0,0.00018931,2]
[338866931,1726956656797,-2826.77,0.00018931,2]
[338866932,1726956656807,-500.0,0.00018932,2]
[338866933,1726956656818,-500.0,0.00018932,2]
[338866934,1726956656830,-7937.44,0.00018932,2]
[338866935,1726956656840,-715.96,0.00018932,2]
[338866936,1726956656851,-200.0,0.00018933,2]
[338866937,1726956656860,-500.0,0.00018933,2]
[338866938,1726956656870,-500.0,0.00018934,2]
[338866939,1726956656879,-500.0,0.00018934,2]
[338866940,1726956656888,-160.0,0.00018942,5]
[338866941,1726956656897,-600.0,0.00018968,2]
[338866942,1726956656906,-338.45825337,0.00019,2]
[338866943,1726956656916,-2573.99,0.00019,2]
[338866944,1726956656925,-47801.65,0.00019,2]
[338866945,1726956656934,-598.98769428,0.00019,2]
[338866946,1726956656943,-3000.0,0.00019,2]
[338866947,1726956656952,-1000.0,0.00019,19]
[338866948,1726956656962,-17482.75620123,0.00019,2]
[338866949,1726956656971,-151381.83750939,0.00019,7]
[338866950,1726956656980,-7734.26253958,0.00019,2]
[338866951,1726956656990,-267.292574,0.00019,2]
[338866952,1726956656999,-267.292574,0.00019,2]
[338866953,1726956657008,-189.76273,0.00019,2]
[338866954,1726956657018,-152.26180965,0.00019,2]
[338866955,1726956657028,-1000.0,0.00019,2]
[338866956,1726956657039,-500.0,0.00019007,2]
[338866957,1726956657049,-500.0,0.00019007,2]
[338866958,1726956657060,-501.74106086,0.00019007,2]
[338866959,1726956657070,-624.8,0.00019029,2]
[338866960,1726956657087,-1000.0,0.00019042,2]
[338866961,1726956657099,-361.24522872,0.00019042,2]
[338866962,1726956657111,-4450.8200785,0.000191,2]
[338866963,1726956657122,-2075.8074504,0.000191,2]
[338866964,1726956657132,-620.00005157,0.00019132,2]
[338866965,1726956657142,-600.0,0.00019149,2]
[338866966,1726956657153,-117829.15057451,0.0001915,2]
[338866967,1726956657163,-38409.31304015,0.0001915,2]
[338866968,1726956657174,-2977.13514584,0.0001915,2]
[338866969,1726956657185,-267.292574,0.0001915,2]
[338866970,1726956657195,-267.292584,0.0001915,2]
[338866971,1726956657206,-189.762732,0.0001915,2]
[338866972,1726956657215,-500.0,0.00019178,2]
[338866973,1726956657225,-500.0,0.00019178,2]
[338866974,1726956657237,-501.6142591,0.00019178,2]
[338866975,1726956657247,-500.0,0.00019178,2]
[338866976,1726956657256,-500.0,0.00019178,2]
[338866977,1726956657266,-338.53163714,0.00019178,2]
[338866978,1726956657276,-3679.92,0.00019178,2]
[338866979,1726956657286,-3679.92,0.00019178,2]
[338866980,1726956657295,-3679.92,0.00019178,2]
[338866981,1726956657304,-3679.92,0.00019178,2]
[338866982,1726956657315,-3679.92,0.00019178,2]
[338866983,1726956657324,-3679.92,0.00019178,2]
[338866984,1726956657334,-3679.92,0.00019178,2]
[338866985,1726956657344,-3679.92,0.00019178,2]
[338866986,1726956657353,-3679.92,0.00019178,2]
[338866987,1726956657362,-3679.92,0.00019178,2]
[338866988,1726956657372,-3679.92,0.00019178,2]
[338866989,1726956657381,-3679.92,0.00019178,2]
[338866990,1726956657391,-3679.92,0.00019178,2]
[338866991,1726956657400,-3679.92,0.00019178,2]
[338866992,1726956657410,-376.475965,0.00019178,2]
[338866993,1726956657419,-445.0183626,0.00019178,4]
[338866994,1726956657428,-283.854834,0.00019178,2]
[338866995,1726956657438,-283.854834,0.00019178,2]
[338866996,1726956657447,-283.854834,0.00019178,2]
[338866997,1726956657456,-283.854834,0.00019178,2]
[338866998,1726956657465,-283.854834,0.00019178,2]
[338866999,1726956657474,-283.854834,0.00019178,2]
[338867000,1726956657483,-283.854834,0.00019178,2]
[338867001,1726956657493,-283.854834,0.00019178,2]
[338867002,1726956657502,-283.854834,0.00019178,2]
[338867003,1726956657511,-283.854834,0.00019178,2]
[338867004,1726956657520,-283.854834,0.00019178,2]
[338867005,1726956657529,-283.854834,0.00019178,2]
[338867006,1726956657538,-283.854834,0.00019178,2]
[338867007,1726956657547,-283.854834,0.00019178,2]
[338867008,1726956657556,-283.854834,0.00019178,2]
[338867010,1726956657565,-283.854834,0.00019178,2]
[338867011,1726956657574,-283.854834,0.00019178,2]
[338867012,1726956657583,-283.854834,0.00019178,2]
[338867013,1726956657592,-283.854834,0.00019178,2]
[338867014,1726956657601,-283.854828,0.00019178,2]
[338867015,1726956657611,-500.0,0.00019205,2]
[338867016,1726956657620,-3679.92,0.00019205,2]
[338867017,1726956657630,-2826.77,0.00019205,2]
[338867018,1726956657639,-500.0,0.00019206,2]
[338867019,1726956657649,-500.0,0.00019206,2]
[338867020,1726956657658,-7937.44,0.00019206,2]
[338867021,1726956657667,-715.96,0.00019206,2]
[338867022,1726956657677,-200.0,0.00019207,2]
[338867023,1726956657686,-500.0,0.00019207,2]
[338867024,1726956657695,-500.0,0.00019208,2]
[338867025,1726956657705,-500.0,0.00019208,2]
[338867026,1726956657715,-600.0,0.0001933,2]
[338867027,1726956657724,-624.8,0.00019352,2]
[338867028,1726956657734,-160.0,0.00019371,6]
[338867029,1726956657743,-5000.0,0.00019384,2]
[338867030,1726956657752,-5000.0,0.00019384,2]
[338867031,1726956657762,-5000.0,0.00019384,2]
[338867032,1726956657771,-5000.0,0.00019384,2]
[338867033,1726956657780,-500.0,0.00019418,2]
[338867034,1726956657790,-500.0,0.00019479,2]
[338867035,1726956657800,-3679.92,0.00019479,2]
[338867036,1726956657809,-2826.77,0.00019479,2]
[338867037,1726956657818,-512.06784638,0.0001948,2]
[338867038,1726956657828,-500.0,0.0001948,2]
[338867039,1726956657837,-7937.44,0.0001948,2]
[338867040,1726956657847,-715.96,0.0001948,2]
[338867041,1726956657857,-160.46941989,0.00019481,2]
[338867042,1726956657866,-500.0,0.00019481,2]
[338867043,1726956657875,-500.0,0.00019482,2]
[338867044,1726956657884,-272.56161506,0.00019482,2]
[338867045,1726956657894,-3000.0,0.000195,7]
[338867046,1726956657903,-1000.0,0.000195,2]
[338867047,1726956657913,-953.57587396,0.0001951,2]
[338867048,1726956657922,-644.1711973,0.00019561,2]
[338867049,1726956657931,-3000.0,0.000196,7]
[338867050,1726956657940,-150.0,0.00019661,2]
[338867051,1726956657949,-150.0,0.00019661,2]